Cogmind - Beta 12 @@@ ROGUE MODE // 2023.05.10 @ 20:38:55 Player: Mr Goldstein Result: Destroyed by as-18986 with Assembled Rifle Performance ------------- Evolutions (0) 0 Regions Visited (2) 400 Robots Destroyed (47) 235 Value Destroyed (928) 928 Prototype IDs (0) 0 Alien Tech Used (0) 0 Bonus (16) 16 TOTAL SCORE: 1579 Bonus ------- High Alert Combat Kills 16 Cogmind --------- Core Integrity 0/250 Matter 289/300 Energy 100/100 System Corruption 1% Temperature Cool (0) Movement Rolling (110) Ox2 Location -10/Mines Parts ------- > --- POWER (1) -------- (None) > --- PROPULSION (2) --- Wheel Wheel > --- UTILITY (2) ------ High-capacity Storage Unit Hardened Light Armor Plating > --- WEAPON (2) ------- Assault Rifle Light Assault Rifle > --- INVENTORY (20) --- Light Ion Engine Wheel Compact Wheel High-capacity Battery (250) Medium Matter Pod (100) Medium Matter Pod (100) Signal Interpreter Signal Interpreter Seismic Detector Hardened Light Armor Plating Hardened Light Armor Plating Hardened Light Armor Plating High-powered Tractor Beam Light Assault Rifle Light Assault Rifle Light Assault Rifle Light Cannon Light Cannon Light Cannon Light Cannon Peak State ------------ > --- POWER ------------ Light Ion Engine > --- PROPULSION ------- Wheel Compact Wheel > --- UTILITY ---------- High-capacity Storage Unit Hardened Light Armor Plating > --- WEAPON ----------- Light Assault Rifle Light Assault Rifle > --- INVENTORY -------- Light Ion Engine Light Ion Engine Wheel Wheel Wheel Compact Wheel Medium Matter Pod Signal Interpreter Signal Interpreter Seismic Detector Hardened Light Armor Plating Hardened Light Armor Plating Hardened Light Armor Plating High-powered Tractor Beam Assault Rifle Light Assault Rifle [Rating: 10] Favorites ----------- Power Light Ion Engine Engine Light Ion Engine Propulsion Wheel Wheel Wheel Utility High-capacity Storage Unit Device Seismic Detector Storage High-capacity Storage Unit Protection Hardened Light Armor Plating Weapon Light Assault Rifle Ballistic Gun Light Assault Rifle Ballistic Cannon Light Cannon Build | -11 -10 -10 ------- Run | Jun Mat Min Slots Evolved . | . . . Power . | . . . Propulsion . | . . . Utility . | . . . Weapon . | . . . Parts Attached 27 | 7 20 . Power 4 | 1 3 . Engine 4 | 1 3 . Core . | . . . Reactor . | . . . Propulsion 8 | 2 6 . Treads . | . . . Leg . | . . . Wheel 8 | 2 6 . Hover . | . . . Flight . | . . . Utility 4 | 1 3 . Device 1 | . 1 . Storage 2 | 1 1 . Processor . | . . . Hackware . | . . . Protection 1 | . 1 . Artifact . | . . . Weapon 11 | 3 8 . Energy Gun . | . . . Energy Cannon . | . . . Ballistic Gun 9 | 3 6 . Ballistic Cannon 2 | . 2 . Launcher . | . . . Special Weapon . | . . . Impact Weapon . | . . . Slashing Weapon . | . . . Piercing Weapon . | . . . Special Melee Weapon . | . . . Unidentified Prototypes . | . . . Parts Lost 6 | . 5 1 Power 3 | . 2 1 Propulsion 2 | . 2 . Utility . | . . . Weapon 1 | . 1 . Highest Loss Streak 2 | . 2 1 To Critical Strikes . | . . . Average Slot Usage (%) 95 | . 95 100 Engine 11 | . 11 14 Wheel 26 | . 26 28 Device 6 | . 6 . Storage 14 | . 14 14 Protection 6 | . 6 14 Ballistic Gun 26 | . 26 28 Ballistic Cannon 1 | . 1 . Naked Turns . | . . . Heaviest Build 54 | 12 54 51 Greatest Support 26 | 26 26 20 Greatest Overweight (x) 5 | . 5 2 Average Overweight (x) 1 | . 1 2 Largest Inventory Capacity 20 | 8 20 20 Average Capacity 18 | 6 18 20 Most Carried 20 | 2 20 20 Average Carried 12 | 1 12 19 Final Capacity 20 | 8 20 20 Final Carried 20 | 2 19 20 Class Distribution -------------------- 67% | Mutant 32% | Scavenger-Mutant Dominant Class ---------------- Mutant | -10/Materials Mutant | -10/Mines Resources | -11 -10 -10 ----------- Run | Jun Mat Min Matter Collected 1177 | 233 928 16 Remotely . | . . . Salvage Created 1475 | . 1381 94 Parts 101 | . 95 6 Haulers Intercepted 2 | . 2 . Recyclers Shooed 1 | . 1 . Parts Field Recycled . | . . . Retrieved Matter . | . . . Parts Self-Destructed . | . . . Prevented . | . . . Kills | -11 -10 -10 ------- Run | Jun Mat Min Combat Hostiles Destroyed 31 | . 26 5 Guns 28 | . 23 5 Cannons 3 | . 3 . Classes Destroyed 10 | . 9 1 Worker 4 | . 4 . Builder 4 | . 4 . Tunneler 1 | . 1 . Hauler 2 | . 2 . Recycler 3 | . 3 . Operator 1 | . 1 . Watcher 2 | . 2 . Swarmer 9 | . 6 3 Grunt 21 | . 20 1 Assembled 1 | . . 1 Best Kill Streak 4 | . 4 3 Combat Bots Only 3 | . 3 3 Max Kills in Single Turn 1 | . 1 1 Gunslinging . | . . . Exploded . | . . . Melee . | . . . Uniques/NPCs Destroyed . | . . . Combat | -11 -10 -10 -------- Run | Jun Mat Min Damage Taken 1231 | . 1030 201 Core 262 | . 194 68 Absorbed by Shields . | . . . Core Remaining (%) 100 | 100 . . Volleys Fired 150 | . 142 8 Largest 2 | . 2 2 Hottest 70 | . 70 40 Shots Fired 300 | . 284 16 Gun 282 | . 266 16 Cannon 18 | . 18 . Launcher . | . . . Special . | . . . Kinetic 300 | . 284 16 Thermal . | . . . Explosive . | . . . Electromagnetic . | . . . Robot Hit Streak 11 | . 11 4 Robot Miss Streak 6 | . 6 2 Penetration Max . | . . . Secondary Targets 4 | . 2 2 Max Gunslinging Chain 1 | . 1 1 Shots Hit Robots 188 | . 178 10 Core Hits 78 | . 72 6 Critical Kills 2 | . 2 . Critical Parts Destroyed 3 | . 3 . Critical Strikes 5 | . 5 . Destroy 5 | . 5 . Melee Attacks . | . . . Impact . | . . . Slashing . | . . . Piercing . | . . . Sneak Attacks . | . . . Combat Hostiles . | . . . Follow-up Attacks . | . . . Damage Inflicted 2059 | . 1935 124 Guns 1805 | . 1681 124 Cannons 254 | . 254 . Explosions . | . . . Melee . | . . . Ramming . | . . . Kinetic 2059 | . 1935 124 Thermal . | . . . Explosive . | . . . Electromagnetic . | . . . Impact . | . . . Slashing . | . . . Piercing . | . . . Highest Corruption 1 | . 1 1 Average Corruption 1 | . 1 1 Corruption Purged . | . . . Corruption Blocked . | . . . Effects 7 | . 7 . Message Errors 1 | . 1 . Matter Fused 3 | . 3 . Heat Flow Errors 1 | . 1 . Energy Discharges 1 | . 1 . Misfires 1 | . 1 . Overload Shots . | . . . Overflow Damage . | . . . Projectiles . | . . . Explosions . | . . . Melee . | . . . Knockbacks 4 | . 4 . Impact . | . . . Kinetic 4 | . 4 . Secondary . | . . . Self-Inflicted Damage . | . . . Shots . | . . . Rammed . | . . . Targets Rammed . | . . . Kicked . | . . . Crushed . | . . . Highest Temperature 312 | . 312 25 Average Temperature 53 | . 58 8 Received Heat Transfer 542 | . 486 56 Siege Activations . | . . . Robots Corrupted . | . . . Combat Hostiles . | . . . Parts Fried . | . . . Impact Corruptions . | . . . Robots Melted . | . . . Combat Hostiles . | . . . Parts Melted . | . . . Heat Transferred . | . . . Parts Sabotaged . | . . . Parts Stolen . | . . . Parts Stripped . | . . . Power Chain Reactions . | . . . Missiles Intercepted . | . . . Alert | -11 -10 -10 ------- Run | Jun Mat Min Peak Influence 420 | . 420 253 Initial 163 | . . 163 Average 206 | . 210 236 Maximum Alert Level 2 | . 2 1 Low Security (%) 39 | 100 38 3 Level 1 50 | . 50 96 Level 2 10 | . 10 . Level 3 . | . . . Level 4 . | . . . Level 5 . | . . . High Security . | . . . Max Security . | . . . Squads Dispatched 7 | . 7 . Investigation 5 | . 5 . Extermination . | . . . Reinforcement 2 | . 2 . Assault . | . . . Garrison . | . . . Intercept . | . . . Searches Triggered . | . . . Construction Impeded . | . . . Haulers Reinforced . | . . . Active Scanning Responses . | . . . Cargo Convoy Interrupts . | . . . Stealth | -11 -10 -10 --------- Run | Jun Mat Min Distress Signals 2 | . 2 . Communications Jammed . | . . . Distress Signals . | . . . Times Spotted 57 | . 44 13 Peak Tracking Total 10 | . 5 10 Tactical Retreats 3 | . 1 2 Traps | -11 -10 -10 ------- Run | Jun Mat Min Traps Triggered 2 | . 2 . Indirectly . | . . . Trap Hack Attempts . | . . . Triggered . | . . . Disarmed . | . . . Reprogrammed . | . . . Reused . | . . . Traps Extracted . | . . . Installed . | . . . Triggered . | . . . Machines | -11 -10 -10 ---------- Run | Jun Mat Min Machines Disabled 1 | . 1 . Max in Single Turn 1 | . 1 . Machines Repaired . | . . . Machines Sabotaged . | . . . Overloaded Fab Kills . | . . . Hacking | -11 -10 -10 --------- Run | Jun Mat Min Machines Accessed 6 | . 6 . Terminals 4 | . 4 . Fabricators . | . . . Repair Stations 1 | . 1 . Recycling Units 1 | . 1 . Scanalyzers . | . . . Garrison Access . | . . . Total Hacks 21 | . 21 . Successful 11 | . 11 . Failed 10 | . 10 . Catastrophic 1 | . 1 . Database Lockouts . | . . . Manual 13 | . 13 . Terminals 17 | . 17 . Fabricators . | . . . Repair Stations 3 | . 3 . Recycling Units 1 | . 1 . Scanalyzers . | . . . Garrison Access . | . . . Terminal Hacks 4 | . 4 . Record 2 | . 2 . Robot Analysis 2 | . 2 . Fabricator Hacks . | . . . Repair Station Hacks 2 | . 2 . Scan Component 2 | . 2 . Recycling Unit Hacks . | . . . Scanalyzer . | . . . Garrison Access Hacks . | . . . Unauthorized Hacks 5 | . 5 . Terminals 4 | . 4 . Botnet 3 | . 3 . Sabotage 1 | . 1 . Fabricators . | . . . Repair Stations . | . . . Recycling Units 1 | . 1 . Tunnel 1 | . 1 . Scanalyzers . | . . . Garrison Access . | . . . Data Cores Recovered . | . . . Used . | . . . Hacking Detections 5 | . 5 . Full Trace Events 4 | . 4 . Feedback Events 1 | . 1 . Corruption 1 | . 1 . Feedback Blocked . | . . . Robot Schematics Acquired . | . . . Robots Built . | . . . Authchips . | . . . Time . | . . . Total Robot Build Rating . | . . . Part Schematics Acquired . | . . . Parts Built . | . . . Authchips . | . . . Time . | . . . Total Part Build Rating . | . . . Parts Repaired . | . . . Time . | . . . Parts Recycled . | . . . Recycled Matter . | . . . Retrieved Matter . | . . . Retrieved Components . | . . . Parts Scanalyzed . | . . . Part Schematics Acquired . | . . . Parts Damaged . | . . . Bothacking | -11 -10 -10 ------------ Run | Jun Mat Min Used RIF Installer . | . . . Robots Hacked . | . . . Non-combat . | . . . Combat . | . . . Robot Hacks Applied . | . . . Relay Couplers Released . | . . . Fabnet Peak Effective % . | . . . Robots Rewired . | . . . Allies Hacked . | . . . Hacks Repelled . | . . . Allies | -11 -10 -10 -------- Run | Jun Mat Min Total Allies 3 | . . 3 Largest Group 3 | . . 3 Highest-Rated Group 40 | . . 40 Highest-Rated Ally 16 | . . 16 Total Orders . | . . . Ally Attacks 9 | . . 9 Total Damage 77 | . . 77 Kills . | . . . Allies Corrupted . | . . . Allies Melted . | . . . Intel | -11 -10 -10 ------- Run | Jun Mat Min Robot Analysis Total 2 | . 2 . Derelict Logs Recovered 1 | . . 1 Drone Launches . | . . . Drone Recoveries . | . . . Exploration | -11 -10 -10 ------------- Run | Jun Mat Min Turns Passed 1866 | 52 1738 76 Spaces Moved 1028 | 50 931 47 Core 12 | 12 . . Treads . | . . . Legs . | . . . Wheels 1016 | 38 931 47 Hover . | . . . Flight . | . . . Fastest Speed 50 | 50 90 110 Average Speed 104 | 81 105 110 Slowest Speed 155 | 100 155 110 Overloaded Moves . | . . . Propulsion Burnouts . | . . . Robots Hopped . | . . . Cave-ins Triggered . | . . . Exploration Rate (%) 38 | 3 97 14 Regions Visited 2 Branch Regions 1 Pre-discovered Areas 1 | . 1 . Known Exits Taken . | . . . Unknown Exits Taken 2 | 1 1 . Scrap Searched . | . . . Spaces Dug . | . . . Terrain Destroyed . | . . . Melee . | . . . Projectile . | . . . AOE . | . . . Terrain Rammed . | . . . Walls Destroyed . | . . . Machines Disabled . | . . . Actions | -11 -10 -10 --------- Run | Jun Mat Min Total 1541 | 57 1426 58 Wait 312 | . 312 . Move 1026 | 49 930 47 Hop . | . . . Pick Up 21 | 1 18 2 Fast Attach 8 | 6 2 . Attach 4 | . 4 . Detach . | . . . Swap 15 | 1 14 . Drop 5 | . 4 1 Fire 150 | . 142 8 Melee . | . . . Ram . | . . . Kick . | . . . Crush . | . . . Escape Stasis . | . . . Rewire . | . . . Trap . | . . . Miscellaneous . | . . . Route ------- -11/Junkyard -10/Materials (discovered 5 exits: [*Mat x3] / [*Min x2]) -10/Mines History --------- Turn | Location | Event 10 | -11/Junkyard | Discovered new exit (range 15) 53 | -11/Junkyard | Entered Materials 300 | -10/Materials | Build established: Mutant 790 | -10/Materials | Discovered new exit (range 15) 922 | -10/Materials | Discovered new exit (range 4) 955 | -10/Materials | Build established: Scavenger-Mutant 966 | -10/Materials | Discovered new exit (range 13) 1020 | -10/Materials | Discovered new exit (range 8) 1307 | -10/Materials | Discovered new exit (range 16) 1341 | -10/Materials | Core integrity fell below 50% 1564 | -10/Materials | Build established: Mutant 1791 | -10/Materials | Entered Mines 1792 | -10/Mines | Assembled infested the area 1795 | -10/Mines | Core integrity fell below 20% 1853 | -10/Mines | Learned Materials non-interactive machine intel 1860 | -10/Mines | Assisted by bots powering up and referring to "LRC-V3" 1867 | -10/Mines | Destroyed by as-18986 with Assembled Rifle Last Messages --------------- 01792_ ALERT: Infestation in the mines, dispatching Demolisher response squad. 01794_ S-10 Pest destroyed. 01794_ Switching to secondary target: S-10 Pest. 01800_ S-10 Pest destroyed. 01804_ Acquired 16 matter. 01806_ Acquired Lgt. Assault Rifle. 01808_ Dropped Lgt. Assault Rifle. 01808_ Acquired Lgt. Assault Rifle. 01821_ as-56971 destroyed. 01838_ G-34 Mercenary destroyed. 01853_ Acquired derelict log, extracted data. Data stored: Materials non-interactive machine intel. 01859_ Knocked back. 01860_ Trooper 1a: "Hello LRC-V3. What is your command?" 01860_ Mercenary 1a: "Hello LRC-V3. What is your command?" 01860_ Trooper 1b: "Hello LRC-V3. What is your command?" 01861_ as-27921 destroyed. 01864_ as-18986 suffers critical hit (Burn). 01865_ Lgt. Ion Engine destroyed. Map ----- +----------------------------------------------------+ | ???????????# %# ## """ #??????? | | ???????##### # = #??????? | | ????# * % **% [ #??????? | | ???????##### ## =% #??????? | | ????????????? ?##########??????? | | ??????????##?# ?????????????????? | | ??????????#T## ####??????????????? | | ??????????# #??????????????? | | ??????????# """" #??????????????? | | ??????????# """" #??????????????? | | ??????????# """" #??????????????? | | ??????????# #??????????????? | | ??????????####%####??????????????? | | ?????????????# #?????????????????? | | ?????????????# #?????????????????? | | ?????????????# #?????????????????? | | ?????????????# #?????????????????? | | ?????????????# #?????????????????? | | ?????????????# #?????????????????? | | ?????????????# #?????????????????? | | ?????????????# #?????????????????? | | ?????????????# #?????????????????? | | ?????????????# #???????#####?????? | | ?????????????# #???????# g #?????? | | ??????# ## ###????## g #??? #? | | ???????# #???## @g# #? | | ???????## ##### #####a #? | | ???????????????# %a #? | | ???????????????# ###### ##? | | ???????????????# #????## #?? | | ???????????????# #?????# #?? | | ???????????????# #????? ##?? | | ???????????????# #?????## ####??? | | ???????????????# #??????####?????? | | ??????????????? #???????????????? | | ???????????????# ????????????????? | | ???????????????? ????????????????? | | ????????????????#????????????????? | | ?????????????????????????????????? | | ?????????????????????????????????? | | ?????????????????????????????????? | | ?????????????????????????????????? | | ?????????????????????????????????? | | ?????????????????????????????????? | | ?????????????????????????????????? | | ?????????????????????????????????? | | ?????????????????????????????????? | | ?????????????????????????????????? | | ?????????????????????????????????? | | ?????????????????????????????????? | +----------------------------------------------------+ Best States ------------- Heat Dissipation 25 Energy Generation 10 Energy Capacity 250 Matter Stores 300 Matter Capacity 300 Sight Range 16 Terrain Scan Density 10 Armor Coverage 150 Evasion (%) 42 Item Schematics ----------------- None Robot Schematics ------------------ None Fabricated ------------ Nothing Alien Tech Used ----------------- None Achievements -------------- None Challenges ------------ None Game ------ Seed CooledPropulsionSpecial Manual? 0 Play Time 00:13:59 Cumulative 189.2 hours Start 2023.05.10 @ 20:22:54 End 2023.05.10 @ 20:38:55 Sessions 1 Manual Loads 0 Difficulty Rogue Special Mode None Game No. 540 Rogue 540 Adventurer 0 Explorer 0 Win Type - Total 9 Types 7/0/1/1/0/0/0/0/0 Lore% 77 Gallery% 76 Achievement% 68 Wizard Run 0 Options --------- ASCII 0 Keyboard 0 Movement Mouse Keybinds 0 Fullscreen 1 Font 16/SmallcapsGlow Map View 75x55 Tactical HUD 1 Map Filters NONE Filters NONE Steam 1 RUN: 5e383356-54c5-444e-94dc-8fb3605eadc8